fUST/lending_fUST_20250228
["ID","MTS","AMOUNT","RATE_DAILY","PERIOD"]
[354790004,1740702514544,5100.99785309,0.00029,2]
[354790005,1740702553109,-540.44,0.000527,2]
[354790006,1740702553130,-162.73,0.0005675,120]
[354790007,1740702553151,-500.0,0.0005675,120]
[354790008,1740702553172,-500.0,0.00057024,120]
[354790009,1740702553192,-500.0,0.00057298,120]
[354790010,1740702553214,-500.0,0.00057572,120]
[354790011,1740702553238,-500.0,0.00057846,120]
[354790012,1740702553257,-500.0,0.00058119,120]
[354790013,1740702553278,-500.0,0.00058393,120]
[354790014,1740702553298,-500.0,0.00058667,120]
[354790015,1740702553318,-500.0,0.00058941,120]
[354790016,1740702553338,-561.159858,0.00059215,120]
[354790017,1740702553358,-6752.25,0.00064689,120]
[354790018,1740702553378,-42.10543248,0.0006469,2]
[354790033,1740702632598,-534.56960812,0.00052,3]
[354790034,1740702632607,-953.76850345,0.000646,28]
[354790035,1740702632616,-8567.53186543,0.0006469,2]
[354790036,1740702632628,-34905.67014034,0.0006469,2]
[354790037,1740702632639,-5397.26720282,0.0006469,2]
[354790038,1740702632650,-419.5982992,0.0006469,2]
[354790063,1740702637966,-500.0,0.00064689,120]
[354790064,1740702637976,-5879.14384409,0.0006469,2]
[354790065,1740702638076,-13084.41083814,0.0006469,2]
[354790119,1740702643241,-23.832,0.0006469,2]
[354790150,1740702646394,-681.30215818,0.0006469,2]
[354790151,1740702650984,251.14,0.000524,51]
[354790152,1740702651036,251.14,0.000524,51]
[354790153,1740702651099,251.14,0.000524,51]
[354790154,1740702651159,251.14,0.000524,51]
[354790155,1740702651221,251.14,0.000524,51]
[354790156,1740702651289,251.14,0.000524,51]
[354790157,1740702651341,251.14,0.000524,51]
[354790158,1740702651399,251.14,0.000524,51]
[354790159,1740702651475,251.14,0.000524,51]
[354790160,1740702651538,251.14,0.000524,51]
[354790161,1740702651577,251.14,0.000524,51]
[354790162,1740702651644,251.14,0.000524,51]
[354790163,1740702693635,486.39,0.000527,2]
[354790164,1740702722145,150.0,0.00061404,2]
[354790165,1740702727110,500.0,0.0005675,7]
[354790166,1740702728044,500.0,0.00057024,7]
[354790167,1740702728286,500.0,0.00057298,7]
[354790168,1740702728526,500.0,0.00057572,7]
[354790169,1740702728784,67.19938843,0.00057846,7]
[354790170,1740702728809,432.80061157,0.00057846,7]
[354790171,1740702729180,500.0,0.00058119,7]
[354790172,1740702729464,500.0,0.00058393,7]
[354790173,1740702729728,500.0,0.00058667,7]
[354790174,1740702729976,500.0,0.00058941,7]
[354790175,1740702730238,500.0,0.00059215,7]
[354790176,1740702730510,500.0,0.00059489,7]
[354790177,1740702731100,528.38516014,0.00059763,7]
[354790209,1740702969383,500.0,0.00027,30]
[354790214,1740703277690,500.0,0.00027,30]
[354790216,1740703558137,-221.02,0.000524,51]
[354790217,1740703558169,-29.01280546,0.000524,51]
[354790218,1740703585408,500.0,0.00027,30]
[354790219,1740703627865,1185.1841785,0.00052011,35]
[354790220,1740703745123,-979.21671324,0.000523,120]
[354790221,1740703745149,-192.00719454,0.000524,51]
[354790222,1740703745175,-221.02,0.000524,51]
[354790223,1740703745200,-221.02,0.000524,51]
[354790224,1740703745224,-221.02,0.000524,51]
[354790225,1740703745251,-221.02,0.000524,51]
[354790226,1740703745275,-221.02,0.000524,51]
[354790227,1740703745302,-221.02,0.000524,51]
[354790228,1740703745328,-221.02,0.000524,51]
[354790229,1740703745353,-221.02,0.000524,51]
[354790230,1740703745377,-221.02,0.000524,51]
[354790231,1740703745401,-221.02,0.000524,51]
[354790232,1740703745423,-437.75,0.000527,2]
[354790233,1740703745442,-179.979981,0.00057806,30]
[354790234,1740703745462,-5393.73436976,0.0006,30]
[354790235,1740703758489,-38861.38563024,0.0006,30]
[354790236,1740703758509,-4344.342254,0.0006068,2]
[354790237,1740703758528,-160.0,0.00060768,3]
[354790238,1740703758549,-500.0,0.00063068,120]
[354790239,1740703758569,-500.0,0.00063924,120]
[354790240,1740703784842,2052.86,0.0006,120]
[354790241,1740703786372,2384.82452357,0.0006,120]
[354790242,1740703786392,2613.38933891,0.0006,120]
[354790243,1740703790477,4998.21386248,0.00055,120]
[354790244,1740703807767,27.49679861,0.000527,2]
[354790245,1740703807788,366.48320139,0.000527,2]
[354790246,1740703824819,998.21386248,0.00063,120]
[354790254,1740703833323,3004.45931209,0.00063,120]
[354790278,1740703838152,-199.7,0.000635,120]
[354790279,1740703838162,-137.824,0.0006429,10]
[354790318,1740703874213,1147.01018979,0.00063,120]
[354790319,1740703893718,28737.37309489,0.00027,30]
[354790320,1740703894210,500.0,0.00027,30]
[354790321,1740703923340,196.68363,0.00032877,2]
[354790322,1740703938332,274.0,0.00049,120]
[354790323,1740704123975,2423.32985927,0.00052013,120]
[354790327,1740704166283,250.0,0.00042902,2]
[354790328,1740704170563,1940.87014071,0.00052013,120]
[354790329,1740704193175,485.21753519,0.00052013,120]
[354790331,1740704314788,1998.41078059,0.0005,120]
[354790333,1740704364215,1013.48141352,0.0005,120]
[354790334,1740704394402,1998.41078059,0.0005,120]
[354790335,1740704524981,998.41078059,0.0005,120]
[354790338,1740704750083,-165.31328055,0.00051,60]
[354790339,1740704756082,-382.68671945,0.00051,60]
[354790340,1740704756101,-618.71355844,0.00051,60]
[354790341,1740704763944,2435.2222954,0.00044144,2]
[354790342,1740704844919,3532.7028307,0.00046521,2]
[354790343,1740704849091,-246.19629714,0.00051,60]
[354790344,1740704917816,3102.0,0.0005,30]
[354790346,1740704946091,-135.09014442,0.00051,60]
[354790347,1740704946114,-274.0,0.00051,120]
[354790348,1740704946139,-1000.0,0.00051,120]
[354790349,1740704946164,-783.3733706,0.00051813,120]
[354790350,1740704946188,-1027.83,0.000519,120]
[354790351,1740704946212,-202.85500468,0.00051913,2]
[354790352,1740704946238,-1875.9452853,0.0005199,2]
[354790353,1740704946261,-25309.46,0.00051992,10]
[354790354,1740704946285,-50000.0,0.00052,120]
[354790355,1740704946311,-434.15397545,0.00052002,2]
[354790356,1740704946335,-558.64,0.00052002,120]
[354790357,1740704946358,-608.58539528,0.00052002,120]
[354790358,1740704946382,-500.0,0.00052002,120]
[354790359,1740704946406,-21091.22,0.00052002,10]
[354790360,1740704946430,-208.39555077,0.00052012,31]
[354790361,1740704946456,-174.43985565,0.00052012,120]
[354790362,1740704946481,-500.0,0.00052012,120]
[354790363,1740704946504,-500.0,0.00052012,120]
[354790364,1740704946526,-168.41298368,0.00052012,120]
[354790365,1740704946549,-998.26,0.00052012,120]
[354790366,1740704946572,-618.50774811,0.00052012,120]
[354790367,1740704946597,-500.0,0.00052012,120]
[354790368,1740704946622,-500.0,0.00052012,120]
[354790369,1740704946649,-500.0,0.00052012,120]
[354790370,1740704946679,-500.0,0.00052012,120]
[354790371,1740704946706,-500.0,0.00052012,120]
[354790372,1740704946734,-500.0,0.00052012,120]
[354790373,1740704946761,-500.0,0.00052012,120]
[354790374,1740704946785,-500.0,0.00052012,120]
[354790375,1740704946806,-500.0,0.00052012,120]
[354790376,1740704946829,-500.0,0.00052012,120]
[354790377,1740704946852,-500.0,0.00052012,120]
[354790378,1740704946877,-591.19,0.00052012,120]
[354790379,1740704946903,-500.0,0.00052012,120]
[354790380,1740704946928,-6470.91,0.00052012,120]
[354790381,1740704946954,-1401.17,0.00052012,7]
[354790382,1740704946977,-499.0,0.00052012,120]
[354790383,1740704947001,-266.99326494,0.00052012,120]
[354790384,1740704947023,-415.6113004,0.00052012,120]
[354790385,1740704947046,-500.0,0.00052012,120]
[354790386,1740704947070,-7775.90474077,0.00052013,35]
[354790387,1740704947109,-18306.64401528,0.00052013,35]
[354790388,1740704947137,-43649.02,0.000521,30]
[354790389,1740704947164,-649.79,0.000521,30]
[354790390,1740704947193,-191.47,0.000521,30]
[354790391,1740704947220,-359.68,0.000521,30]
[354790392,1740704947246,-1288.63,0.000521,30]
[354790393,1740704947273,-151.0,0.000521,120]
[354790394,1740704947298,-151.436809,0.000521,120]
[354790395,1740704947323,-152.052683,0.000521,120]
[354790396,1740704947346,-151.0,0.000521,120]
[354790397,1740704947370,-151.0,0.000521,120]
[354790398,1740704947394,-500.0,0.00052276,120]
[354790399,1740704947419,-500.0,0.00052286,120]
[354790400,1740704947442,-500.0,0.00052286,120]
[354790401,1740704947466,-998.26,0.00052286,120]
[354790402,1740704947490,-500.0,0.00052286,120]
[354790403,1740704947515,-500.0,0.00052286,120]
[354790404,1740704947539,-500.0,0.00052286,120]
[354790405,1740704947563,-1401.17,0.00052286,7]
[354790406,1740704947760,-159.25394868,0.00052286,120]
[354790407,1740704947792,-268.18,0.000524,51]
[354790408,1740704947817,-268.18,0.000524,51]
[354790409,1740704947845,-268.18,0.000524,51]
[354790410,1740704947871,-268.18,0.000524,51]
[354790411,1740704947895,-268.18,0.000524,51]
[354790412,1740704947922,-268.18,0.000524,51]
[354790413,1740704947947,-268.18,0.000524,51]
[354790414,1740704947972,-268.18,0.000524,51]
[354790415,1740704947997,-268.18,0.000524,51]
[354790416,1740704948022,-268.18,0.000524,51]
[354790417,1740704948046,-268.18,0.000524,51]
[354790418,1740704948071,-268.18,0.000524,51]
[354790419,1740704948092,-500.0,0.000525,7]
[354790420,1740704948114,-500.0,0.0005256,120]
[354790421,1740704948135,-500.0,0.0005256,120]
[354790422,1740704948156,-998.26,0.0005256,120]
[354790423,1740704948178,-255.4,0.0005256,120]
[354790424,1740704948201,-500.0,0.0005256,120]
[354790425,1740704948222,-1401.17,0.0005256,7]
[354790426,1740704948243,-300.0,0.000526,28]
[354790427,1740704948265,-635.12,0.000528,2]
[354790428,1740704948286,-500.0,0.00052834,120]
[354790429,1740704948306,-500.0,0.00052834,120]
[354790430,1740704948327,-998.26,0.00052834,120]
[354790431,1740704948349,-500.0,0.00052834,120]
[354790432,1740704948371,-1401.17,0.00052834,7]
[354790433,1740704948393,-274.0,0.00053,120]
[354790434,1740704948415,-500.0,0.00053108,120]
[354790435,1740704948436,-500.0,0.00053108,120]
[354790436,1740704948457,-998.26,0.00053108,120]
[354790437,1740704948481,-296.38,0.00053108,120]
[354790438,1740704948502,-1401.17,0.00053108,7]
[354790439,1740704948523,-500.0,0.00053382,120]
[354790440,1740704948545,-998.26,0.00053382,120]
[354790441,1740704948566,-1401.17,0.00053382,7]
[354790442,1740704948586,-500.0,0.00053656,120]
[354790443,1740704948605,-998.26,0.00053656,120]
[354790444,1740704948627,-1401.17,0.00053656,7]
[354790445,1740704948667,-500.0,0.0005393,120]
[354790446,1740704948706,-998.26,0.0005393,120]
[354790447,1740704948736,-1401.17,0.0005393,7]
[354790448,1740704948756,-500.0,0.00054204,120]
[354790449,1740704948776,-998.26,0.00054204,120]
[354790450,1740704948799,-1401.17,0.00054204,7]
[354790451,1740704948819,-151.0,0.00054204,120]
[354790452,1740704948840,-151.0,0.00054204,120]
[354790453,1740704948860,-151.0,0.00054204,120]
[354790454,1740704948879,-500.0,0.00054478,120]
[354790455,1740704948900,-998.26,0.00054478,120]
[354790456,1740704948920,-1401.17,0.00054478,7]
[354790457,1740704948940,-500.0,0.00054752,120]
[354790458,1740704948960,-998.26,0.00054752,120]
[354790459,1740704948981,-1401.17,0.00054752,7]
[354790460,1740704949011,-202.85500464,0.0005496,2]
[354790461,1740704949050,-274.0,0.00055,120]
[354790462,1740704949086,-1998.41078059,0.00055,120]
[354790463,1740704949106,-500.0,0.00055026,120]
[354790464,1740704949128,-998.26,0.00055026,120]
[354790465,1740704949149,-1401.17,0.00055026,7]
[354790466,1740704949169,-500.0,0.000553,120]
[354790467,1740704949190,-998.26,0.000553,120]
[354790468,1740704949211,-1401.17,0.000553,7]
[354790469,1740704949233,-500.0,0.00055573,120]
[354790470,1740704949255,-998.26,0.00055573,120]
[354790471,1740704949276,-1401.17,0.00055573,7]
[354790472,1740704949301,-500.0,0.00055847,120]
[354790473,1740704949325,-998.26,0.00055847,120]
[354790474,1740704949353,-1401.17,0.00055847,7]
[354790475,1740704949377,-500.0,0.00056121,120]
[354790476,1740704949401,-998.26,0.00056121,120]
[354790477,1740704949425,-1401.17,0.00056121,7]
[354790478,1740704949453,-180.34185099,0.00056395,120]
[354790479,1740704949476,-998.26,0.00056395,120]
[354790480,1740704949499,-1401.17,0.00056395,7]
[354790481,1740704949520,-179.55112219,0.00056583,53]
[354790482,1740704949541,-998.26,0.00056669,120]
[354790483,1740704949562,-1401.17,0.00056669,7]
[354790484,1740704949582,-998.26,0.00056943,120]
[354790485,1740704949602,-1401.17,0.00056943,7]
[354790486,1740704949623,-274.0,0.00057,120]
[354790487,1740704949643,-998.26,0.00057217,120]
[354790488,1740704949670,-1401.17,0.00057217,7]
[354790489,1740704949694,-998.26,0.00057491,120]
[354790490,1740704949716,-1401.17,0.00057491,7]
[354790491,1740704949738,-6470.91,0.00057492,120]
[354790492,1740704949760,-151.0,0.00057492,120]
[354790493,1740704949780,-151.0,0.00057492,120]
[354790494,1740704949802,-998.26,0.00057765,120]
[354790495,1740704949824,-1401.17,0.00057765,7]
[354790496,1740704949845,-1000.0,0.00057979,7]
[354790497,1740704949866,-202.85500464,0.00058007,2]
[354790498,1740704949887,-998.26,0.00058039,120]
[354790499,1740704949908,-1401.17,0.00058039,7]
[354790500,1740704949929,-998.36,0.00058313,120]
[354790501,1740704949950,-1401.38,0.00058313,7]
[354790502,1740704949972,-274.0,0.00059,120]
[354790503,1740704949992,-1998.41078059,0.0006,120]
[354790504,1740704950013,-10543.24428306,0.0006,120]
[354790505,1740704950033,-274.0,0.00061,120]
[354790506,1740704950054,-202.85500464,0.00061053,2]
[354790507,1740704950074,-150.0,0.00061404,2]
[354790508,1740704950093,-150.0,0.00061404,2]
[354790509,1740704950114,-6470.91,0.00062971,120]
[354790510,1740704950135,-274.0,0.00063,120]
[354790511,1740704950156,-500.0,0.00063175,120]
[354790512,1740704950176,-306.2,0.000635,120]
[354790513,1740704950196,-191.47,0.000636,30]
[354790514,1740704950217,-359.68,0.000636,30]
[354790515,1740704950238,-1288.63,0.000636,30]
[354790516,1740704950258,-151.0,0.000636,23]
[354790517,1740704950279,-43649.02,0.000639,30]
[354790518,1740704950299,-649.79,0.000639,30]
[354790519,1740704950318,-151.0,0.000639,120]
[354790520,1740704950338,-151.0,0.000639,120]
[354790521,1740704950359,-151.0,0.000639,110]
[354790522,1740704950380,-151.0,0.000639,120]
[354790523,1740704950404,-151.0,0.000639,2]
[354790524,1740704950425,-151.0,0.000639,120]
[354790525,1740704950446,-151.0,0.000639,120]
[354790526,1740704950467,-151.0,0.000639,120]
[354790527,1740704950488,-151.0,0.000639,30]
[354790528,1740704950509,-151.0,0.000639,120]
[354790529,1740704950531,-151.0,0.000639,120]
[354790530,1740704950551,-151.0,0.000639,120]
[354790531,1740704950572,-151.0,0.000639,120]
[354790532,1740704950594,-152.004498,0.000639,7]
[354790533,1740704950614,-227.609398,0.000639,120]
[354790534,1740704950634,-202.85500464,0.000641,2]
[354790535,1740704950657,-151.0,0.00064109,120]
[354790536,1740704950679,-151.0,0.00064109,120]
[354790537,1740704950700,-151.0,0.00064109,120]
[354790538,1740704950722,-151.0,0.00064109,120]
[354790539,1740704950744,-151.0,0.00064109,120]
[354790540,1740704950764,-5720.40097279,0.000642,2]
[354790541,1740704953123,-17576.02,0.00052003,10]
[354790542,1740704953144,-151.0,0.000639,120]
[354790543,1740704954697,854.64680449,0.000519,28]
[354790544,1740704963071,14646.68,0.00052003,10]
[354790545,1740704966804,3887.95237039,0.00052013,35]
[354790546,1740704967262,9153.32200764,0.00052013,35]
[354790547,1740704968386,151.0,0.000639,120]
[354790548,1740704972213,151.0,0.000639,120]
[354790549,1740704974027,12205.57,0.00052003,10]
[354790550,1740704977216,55555.0,0.00057392,120]
[354790551,1740704979690,151.0,0.000639,120]
[354790552,1740704984951,10171.3,0.00052003,10]
[354790553,1740704986160,179.979981,0.00037669,2]
[354790554,1740704995955,8476.09,0.00052003,10]
[354790555,1740705001390,162.94,0.000521,30]
[354790556,1740705006278,7063.41,0.00052003,10]
[354790557,1740705016918,5595.70063648,0.00052003,10]
[354790558,1740705016938,290.46936352,0.00052003,10]
[354790559,1740705027610,4905.14,0.00052003,10]
[354790582,1740705032600,-10165.22327969,0.00052013,15]
[354790583,1740705032660,-27227.50383687,0.00052013,15]
[354790584,1740705032672,-12500.37593129,0.00052013,15]
[354790585,1740705032720,-612.540291,0.00052013,15]
[354790586,1740705034565,443.71,0.000521,30]
[354790594,1740705037985,4087.62,0.00052003,10]
[354790598,1740705038300,-9499.47153349,0.00052013,15]
[354790599,1740705038360,-3782.50501255,0.00052013,15]
[354790600,1740705038372,-6970.87960091,0.00052013,15]
[354790602,1740705038491,-1174.1192345,0.00052013,15]
[354790604,1740705038503,-60965.50716272,0.00052013,15]
[354790607,1740705038515,-7965.06971346,0.00052013,15]
[354790609,1740705038526,-13619.56112663,0.00052013,15]
[354790610,1740705038537,-4410.39522008,0.00052013,15]
[354790611,1740705038548,-11557.3599256,0.00052013,15]
[354790625,1740705043427,-742.5024786,0.00052013,15]
[354790627,1740705043704,-4919.04701445,0.00052013,15]
[354790628,1740705045936,33250.37,0.000521,30]
[354790629,1740705046867,-112.57482787,0.00052013,15]
[354790631,1740705046994,-851.62567513,0.00052013,15]
[354790632,1740705073077,5662.04,0.00052012,120]
[354790633,1740705073334,5662.04,0.00057492,120]
[354790634,1740705073578,5662.04,0.00062971,120]
[354790635,1740705088187,500.0,0.00052012,2]
[354790636,1740705088238,509.60277708,0.00052012,2]
[354790637,1740705102525,267.27,0.000529,51]
[354790638,1740705102580,267.27,0.000529,51]
[354790639,1740705102635,267.27,0.000529,51]
[354790640,1740705102698,267.27,0.000529,51]
[354790641,1740705102756,267.27,0.000529,51]
[354790642,1740705102820,267.27,0.000529,51]
[354790643,1740705102878,267.27,0.000529,51]
[354790644,1740705102937,267.27,0.000529,51]
[354790645,1740705103002,267.27,0.000529,51]
[354790646,1740705103059,267.27,0.000529,51]
[354790647,1740705103118,267.27,0.000529,51]
[354790648,1740705103183,267.27,0.000529,51]
[354790649,1740705106395,571.61,0.000538,2]
[354790650,1740705135262,846.58641308,0.00063,120]
[354790651,1740705144972,767.9153179,0.0006409,28]
[354790652,1740705145575,500.0,0.00061936,120]
[354790653,1740705145962,500.0,0.00064031,120]
[354790654,1740705157827,274.0,0.00049,120]
[354790687,1740705942149,-274.0,0.00051,120]
[354790688,1740705942173,-626.69869648,0.00051912,120]
[354790689,1740705942196,-671.92590318,0.00051912,28]
[354790690,1740705942219,-500.0,0.00052012,120]
[354790691,1740705942241,-500.0,0.00052012,120]
[354790692,1740705942263,-500.0,0.00052012,120]
[354790693,1740705942284,-500.0,0.00052012,120]
[354790694,1740705942308,-540.63249423,0.00052012,120]
[354790695,1740705942329,-500.0,0.00052012,120]
[354790696,1740705942349,-895.95,0.00052012,120]
[354790697,1740705942370,-500.0,0.00052012,14]
[354790698,1740705942390,-500.0,0.00052012,120]
[354790699,1740705942412,-500.0,0.00052012,120]
[354790700,1740705942432,-500.0,0.00052012,30]
[354790701,1740705942454,-516.47,0.00052012,120]
[354790702,1740705942476,-500.0,0.00052012,120]
[354790703,1740705942496,-500.0,0.00052012,120]
[354790704,1740705942518,-500.0,0.00052022,120]
[354790705,1740705942538,-500.0,0.00052022,120]
[354790706,1740705942561,-500.0,0.00052022,120]
[354790707,1740705942584,-500.0,0.00052022,120]
[354790708,1740705942608,-500.0,0.00052022,120]
[354790709,1740705942629,-459.43076171,0.00052022,120]
[354790712,1740706004572,3689.30439372,0.0005,7]
[354790713,1740706004968,500.0,0.00027,30]
[354790714,1740706030309,1288.41,0.00051992,30]
[354790715,1740706031098,-400.0,0.00051991,15]
[354790716,1740706031128,-326.0,0.00051992,2]
[354790717,1740706031152,-40.56923829,0.00052022,120]
[354790718,1740706031175,-500.0,0.00052022,120]
[354790719,1740706031198,-500.0,0.00052022,120]
[354790720,1740706031221,-438.86817904,0.00052022,120]
[354790721,1740706031243,-636.36,0.00052022,120]
[354790722,1740706031265,-270.39,0.00052286,120]
[354790723,1740706031286,-895.95,0.00052286,120]
[354790724,1740706031308,-259.00496685,0.00052296,120]
[354790728,1740706039097,-240.99503315,0.00052296,120]
[354790729,1740706039125,-895.95,0.0005256,120]
[354790730,1740706039293,-1000.0,0.000526,30]
[354790731,1740706039316,-735.13136685,0.000528,60]
[354790733,1740706068237,4998.88215512,0.00051992,120]
[354790741,1740706114579,1264.69886397,0.00051992,90]
[354790742,1740706115850,11521.29275839,0.00029,2]
[354790743,1740706122102,200.16806085,0.00051992,120]
[354790750,1740706148146,-385.00333042,0.000499,8]
[354790751,1740706148170,-501.3589572,0.00051892,120]
[354790752,1740706148196,-587.9351653,0.00051892,28]
[354790753,1740706148217,-1545.09,0.00051982,10]
[354790754,1740706148238,-3288.39,0.00051982,10]
[354790755,1740706148262,-2740.33,0.00051982,10]
[354790756,1740706148283,-2000.0,0.00051992,30]
[354790757,1740706148304,-264.86863315,0.000528,60]
[354790758,1740706148324,-1000.0,0.000528,120]
[354790759,1740706148344,-66.58312478,0.000528,90]
[354790760,1740706150167,-2283.6,0.00051982,10]
[354790761,1740706150193,-933.41687522,0.000528,90]
[354790762,1740706150215,-895.95,0.00052834,120]
[354790763,1740706150242,-235.21,0.000529,51]
[354790764,1740706150266,-235.21,0.000529,51]
[354790765,1740706150290,-235.21,0.000529,51]
[354790766,1740706150314,-235.21,0.000529,51]
[354790767,1740706150339,-235.21,0.000529,51]
[354790768,1740706150362,-235.21,0.000529,51]
[354790769,1740706150386,-235.21,0.000529,51]
[354790770,1740706150410,-235.21,0.000529,51]
[354790771,1740706150434,-235.21,0.000529,51]
[354790772,1740706150462,-235.21,0.000529,51]
[354790773,1740706150487,-235.21,0.000529,51]
[354790774,1740706150511,-235.21,0.000529,51]
[354790775,1740706150532,-274.0,0.00053,120]
[354790776,1740706150553,-895.95,0.00053108,120]
[354790777,1740706150573,-895.95,0.00053382,120]
[354790778,1740706150594,-895.95,0.00053656,120]
[354790779,1740706150615,-5601.79,0.00053929,120]
[354790780,1740706150634,-895.95,0.0005393,120]
[354790781,1740706150655,-895.95,0.00054204,120]
[354790782,1740706150675,-895.95,0.00054478,120]
[354790783,1740706150698,-514.45,0.000546,2]
[354790784,1740706150719,-895.95,0.00054752,120]
[354790785,1740706150741,-196.8678371,0.00054794,120]
[354790786,1740706150761,-235.18926444,0.00054794,31]
[354790787,1740706150781,-500.0,0.00054794,120]
[354790788,1740706150803,-500.0,0.00054794,120]
[354790789,1740706150824,-497.87901862,0.00054794,120]
[354790790,1740706150845,-500.0,0.00054794,120]
[354790791,1740706150866,-162.73,0.00054794,120]
[354790792,1740706150887,-500.0,0.00054794,120]
[354790793,1740706150910,-151.0,0.00054795,120]
[354790794,1740706150933,-151.0,0.00054795,120]
[354790795,1740706150957,-151.0,0.00054795,120]
[354790796,1740706150977,-151.0,0.00054795,120]
[354790797,1740706150997,-151.0,0.00054795,120]
[354790798,1740706151018,-154.1828,0.00054795,120]
[354790799,1740706151039,-151.0,0.00054795,120]
[354790800,1740706151061,-151.0,0.00054795,120]
[354790801,1740706151084,-151.0,0.00054795,120]
[354790802,1740706151106,-151.0,0.00054795,120]
[354790803,1740706151127,-203.63948,0.00054795,120]
[354790804,1740706151148,-248.391111,0.00054795,120]
[354790805,1740706151169,-151.0,0.00054795,120]
[354790806,1740706151189,-151.0,0.00054795,120]
[354790807,1740706151210,-151.0,0.00054795,120]
[354790808,1740706151231,-151.0,0.00054795,120]
[354790809,1740706151252,-151.0,0.00054795,120]
[354790810,1740706151273,-151.0,0.00054795,30]
[354790811,1740706151293,-151.0,0.00054795,120]
[354790812,1740706151314,-151.0,0.00054795,120]
[354790813,1740706151334,-151.0,0.00054795,120]
[354790814,1740706151355,-151.0,0.00054795,120]
[354790815,1740706151375,-162.18106,0.00054795,120]
[354790816,1740706151395,-151.0,0.00054795,120]
[354790817,1740706151417,-3903.89307073,0.00054795,120]
[354790818,1740706151438,-3903.89307073,0.00054795,120]
[354790819,1740706151461,-3903.89307073,0.00054795,120]
[354790820,1740706151482,-3903.89307073,0.00054795,120]
[354790821,1740706151503,-3903.89307073,0.00054795,120]
[354790822,1740706151524,-3903.89307073,0.00054795,120]
[354790823,1740706151545,-3903.89307073,0.00054795,120]
[354790824,1740706151566,-3903.89307073,0.00054795,120]
[354790825,1740706151587,-3903.89307073,0.00054795,120]
[354790826,1740706151608,-3903.89307073,0.00054795,120]
[354790827,1740706151629,-1466.49136854,0.00054795,120]
[354790828,1740706166210,-2437.40170219,0.00054795,120]
[354790829,1740706166230,-3903.89307073,0.00054795,120]
[354790830,1740706166251,-3903.89307073,0.00054795,120]
[354790831,1740706166273,-3903.89307073,0.00054795,120]
[354790832,1740706166294,-3903.89307073,0.00054795,120]
[354790833,1740706166314,-3903.89307073,0.00054795,120]
[354790834,1740706166335,-3903.89307073,0.00054795,120]
[354790835,1740706166356,-3903.89307073,0.00054795,120]
[354790836,1740706166376,-3903.89307073,0.00054795,120]
[354790837,1740706166396,-3903.89307073,0.00054795,120]
[354790838,1740706166416,-3903.89307073,0.00054795,120]
[354790839,1740706166437,-3903.89307073,0.00054795,120]